fUSD/lending_fUSD_20250306
["ID","MTS","AMOUNT","RATE_DAILY","PERIOD"]
[355534680,1741241445334,-502.88252148,0.00011489,2]
[355534682,1741241445345,-500.0,0.00011489,2]
[355534684,1741241445355,-500.0,0.00011489,2]
[355534686,1741241445366,-513.99,0.00011489,2]
[355534688,1741241445376,-580.49683379,0.00011489,2]
[355534690,1741241445385,-500.0,0.00011489,2]
[355534692,1741241445395,-500.0,0.00011489,2]
[355534739,1741241445831,-500.0,0.00011489,2]
[355534742,1741241445852,-500.0,0.00011489,2]
[355534744,1741241445863,-500.0,0.00011489,2]
[355534746,1741241445873,-500.0,0.00011489,2]
[355534747,1741241445882,-519.68,0.00011489,2]
[355534749,1741241445892,-150.70115948,0.00011489,2]
[355534751,1741241445902,-500.0,0.00011489,2]
[355534753,1741241445911,-500.0,0.00011489,2]
[355534755,1741241445920,-500.0,0.00011489,2]
[355534757,1741241445930,-500.0,0.00011489,2]
[355534759,1741241445939,-500.0,0.00011489,2]
[355534761,1741241445948,-500.0,0.00011489,2]
[355534763,1741241445957,-500.0,0.00011489,2]
[355534765,1741241445967,-500.0,0.00011489,2]
[355534767,1741241445977,-500.0,0.00011489,2]
[355534769,1741241445986,-511.69276173,0.00011489,2]
[355534771,1741241445996,-500.0,0.00011489,2]
[355534773,1741241446009,-500.0,0.00011489,2]
[355534776,1741241446018,-536.81,0.00011489,2]
[355534777,1741241446028,-500.0,0.00011489,2]
[355534779,1741241446037,-500.0,0.00011489,2]
[355534781,1741241446047,-500.0,0.00011489,2]
[355534783,1741241446056,-500.0,0.00011489,2]
[355534785,1741241446065,-500.0,0.00011489,2]
[355534787,1741241446076,-500.0,0.00011489,2]
[355534789,1741241446086,-590.90123748,0.00011489,2]
[355534791,1741241446095,-586.51,0.00011489,2]
[355534793,1741241446104,-500.0,0.00011489,2]
[355534795,1741241446115,-500.0,0.00011489,2]
[355534797,1741241446124,-500.0,0.00011489,2]
[355534799,1741241446134,-500.0,0.00011489,2]
[355534801,1741241446143,-500.0,0.00011489,2]
[355534803,1741241446153,-500.0,0.00011489,2]
[355534805,1741241446162,-500.0,0.00011489,2]
[355534807,1741241446172,-500.0,0.00011489,2]
[355534809,1741241446181,-500.0,0.00011489,2]
[355534811,1741241446190,-500.0,0.00011489,2]
[355534813,1741241446199,-500.0,0.00011489,2]
[355534815,1741241446209,-500.0,0.00011489,2]
[355534817,1741241446218,-778.59,0.00011489,2]
[355534819,1741241446228,-584.13303211,0.00011489,2]
[355534821,1741241446238,-500.0,0.00011489,2]
[355534823,1741241446247,-500.0,0.00011489,2]
[355534824,1741241446256,-500.0,0.00011489,2]
[355534826,1741241446265,-500.0,0.00011489,2]
[355534828,1741241446274,-500.0,0.00011489,2]
[355534830,1741241446284,-519.03819485,0.00011489,2]
[355534832,1741241446293,-500.0,0.00011489,2]
[355534834,1741241446303,-500.0,0.00011489,2]
[355534836,1741241446312,-574.48,0.00011489,2]
[355534838,1741241446321,-500.0,0.00011489,2]
[355534840,1741241446331,-500.0,0.00011489,2]
[355534842,1741241446341,-500.0,0.00011489,2]
[355534844,1741241446351,-500.0,0.00011489,2]
[355534846,1741241446360,-500.0,0.00011489,2]
[355534848,1741241446370,-500.0,0.00011489,2]
[355534850,1741241446379,-500.0,0.00011489,2]
[355534852,1741241446388,-500.0,0.00011489,2]
[355534854,1741241446398,-738.66,0.00011489,2]
[355534856,1741241446407,-500.0,0.00011489,2]
[355534858,1741241446417,-500.0,0.00011489,2]
[355534860,1741241446427,-500.0,0.00011489,2]
[355534862,1741241446437,-534.95,0.00011489,2]
[355534864,1741241446446,-500.0,0.00011489,2]
[355534866,1741241446455,-500.0,0.00011489,2]
[355534868,1741241446466,-500.0,0.00011489,2]
[355534870,1741241446476,-500.0,0.00011489,2]
[355534872,1741241446485,-515.26699933,0.00011489,2]
[355534874,1741241446495,-500.0,0.00011489,2]
[355534876,1741241446504,-500.0,0.00011489,2]
[355534878,1741241446513,-500.0,0.00011489,2]
[355534880,1741241446523,-633.41,0.00011489,2]
[355534882,1741241446533,-614.39,0.00011489,2]
[355534884,1741241446542,-500.0,0.00011489,2]
[355534886,1741241446551,-500.0,0.00011489,2]
[355534888,1741241446560,-500.0,0.00011489,2]
[355534890,1741241446569,-500.0,0.00011489,2]
[355534892,1741241446580,-500.0,0.00011489,2]
[355534894,1741241446589,-500.0,0.00011489,2]
[355534896,1741241446598,-521.75,0.00011489,2]
[355534898,1741241446608,-500.0,0.00011489,2]
[355534900,1741241446617,-500.0,0.00011489,2]
[355534902,1741241446626,-500.0,0.00011489,2]
[355534904,1741241446636,-682.65,0.00011489,2]
[355534906,1741241446645,-500.0,0.00011489,2]
[355534908,1741241446654,-500.0,0.00011489,2]
[355534910,1741241446664,-500.0,0.00011489,2]
[355534912,1741241446673,-500.0,0.00011489,2]
[355534914,1741241446683,-500.0,0.00011489,2]
[355534917,1741241446699,-749.2,0.00011489,2]
[355534919,1741241446711,-500.0,0.00011489,2]
[355534921,1741241446721,-1021.21,0.00011489,2]
[355534923,1741241446731,-500.0,0.00011489,2]
[355534925,1741241446741,-500.0,0.00011489,2]
[355534927,1741241446750,-500.0,0.00011489,2]
[355534929,1741241446760,-500.0,0.00011489,2]
[355534931,1741241446769,-500.0,0.00011489,2]
[355534933,1741241446779,-500.0,0.00011489,2]
[355534935,1741241446793,-954.05,0.00011489,2]
[355534937,1741241446802,-500.0,0.00011489,2]
[355534939,1741241446812,-500.0,0.00011489,2]
[355534941,1741241446822,-3059.53,0.00011489,2]
[355534943,1741241446833,-545.49,0.00011489,2]
[355534945,1741241446843,-500.0,0.00011489,2]
[355534947,1741241446852,-518.63,0.00011489,2]
[355534949,1741241446862,-500.0,0.00011489,2]
[355534951,1741241446872,-3683.08,0.00011489,2]
[355534953,1741241446881,-533.35,0.00011489,2]
[355534955,1741241446891,-500.0,0.00011489,2]
[355534957,1741241446900,-589.61,0.00011489,2]
[355534959,1741241446910,-500.0,0.00011489,2]
[355534961,1741241446919,-500.0,0.00011489,2]
[355534962,1741241446930,-685.31,0.00011489,2]
[355534964,1741241446940,-3030.03,0.00011489,2]
[355534967,1741241446950,-500.0,0.00011489,2]
[355534968,1741241446959,-500.0,0.00011489,2]
[355534970,1741241446969,-1132.82,0.00011489,2]
[355534972,1741241446979,-500.0,0.00011489,2]
[355534975,1741241446989,-500.0,0.00011489,2]
[355534976,1741241446998,-648.13,0.00011489,2]
[355534978,1741241447008,-500.0,0.00011489,2]
[355534980,1741241447020,-500.0,0.00011489,2]
[355534982,1741241447030,-1511.56,0.00011489,2]
[355534984,1741241447040,-338.88,0.00011489,2]
[355534986,1741241447050,-3464.94,0.00011489,2]
[355534988,1741241447059,-500.0,0.00011489,2]
[355534990,1741241447069,-500.0,0.00011489,2]
[355534992,1741241447080,-639.45,0.00011489,2]
[355534994,1741241447090,-500.0,0.00011489,2]
[355534996,1741241447099,-500.0,0.00011489,2]
[355534998,1741241447109,-1048.29,0.00011489,2]
[355535000,1741241447119,-1278.88,0.00011489,2]
[355535002,1741241447129,-527.86,0.00011489,2]
[355535004,1741241447138,-998.19,0.00011489,2]
[355535006,1741241447148,-518.15278823,0.00011489,2]
[355535008,1741241447158,-500.0,0.00011489,2]
[355535010,1741241447167,-517.74,0.00011489,2]
[355535012,1741241447176,-500.0,0.00011489,2]
[355535014,1741241447186,-500.0,0.00011489,2]
[355535016,1741241447195,-500.0,0.00011489,2]
[355535018,1741241447205,-1582.69,0.00011489,2]
[355535020,1741241447215,-500.0,0.00011489,2]
[355535022,1741241447224,-500.0,0.00011489,2]
[355535024,1741241447234,-500.0,0.00011489,2]
[355535026,1741241447243,-500.0,0.00011489,2]
[355535028,1741241447252,-500.0,0.00011489,2]
[355535030,1741241447262,-504.85360301,0.00011489,2]
[355535032,1741241447271,-4062.78,0.00011489,2]
[355535034,1741241447282,-2372.84,0.00011489,2]
[355535036,1741241447291,-500.0,0.00011489,2]
[355535038,1741241447301,-500.0,0.00011489,2]
[355535040,1741241447310,-558.64,0.00011489,2]
[355535042,1741241447320,-500.0,0.00011489,2]
[355535044,1741241447331,-656.98,0.00011489,2]
[355535046,1741241447341,-1166.92,0.00011489,2]
[355535048,1741241447350,-523.73876791,0.00011489,2]
[355535050,1741241447360,-500.0,0.00011489,2]
[355535052,1741241447370,-533.57,0.00011489,2]
[355535054,1741241447379,-500.0,0.00011489,2]
[355535056,1741241447389,-500.0,0.00011489,2]
[355535058,1741241447399,-500.0,0.00011489,2]
[355535060,1741241447408,-677.02,0.00011489,2]
[355535062,1741241447418,-880.87,0.00011489,2]
[355535064,1741241447428,-500.0,0.00011489,2]
[355535066,1741241447437,-500.0,0.00011489,2]
[355535068,1741241447447,-608.72,0.00011489,2]
[355535070,1741241447456,-500.0,0.00011489,2]
[355535071,1741241447466,-500.0,0.00011489,2]
[355535073,1741241447476,-500.0,0.00011489,2]
[355535075,1741241447485,-335.57393588,0.00011489,2]
[355535077,1741241447494,-1384.07,0.00011489,2]
[355535079,1741241447504,-500.0,0.00011489,2]
[355535081,1741241447513,-500.0,0.00011489,2]
[355535083,1741241447522,-500.0,0.00011489,2]
[355535085,1741241447532,-500.0,0.00011489,2]
[355535088,1741241447546,-1042.94,0.00011489,2]
[355535090,1741241447556,-500.0,0.00011489,2]
[355535091,1741241447565,-500.0,0.00011489,2]
[355535093,1741241447575,-316.32010089,0.00011489,2]
[355535095,1741241447585,-598.05,0.00011489,2]
[355535097,1741241447595,-500.0,0.00011489,2]
[355535099,1741241447605,-909.66,0.00011489,2]
[355535101,1741241447615,-500.0,0.00011489,2]
[355535103,1741241447625,-500.0,0.00011489,2]
[355535105,1741241447634,-563.8,0.00011489,2]
[355535107,1741241447644,-500.0,0.00011489,2]
[355535109,1741241447654,-1035.77,0.00011489,2]
[355535111,1741241447664,-500.0,0.00011489,2]
[355535113,1741241447674,-500.0,0.00011489,2]
[355535115,1741241447685,-500.0,0.00011489,2]
[355535117,1741241447694,-1177.78,0.00011489,2]
[355535119,1741241447704,-315318.9990876,0.0001149,2]
[355535121,1741241447715,-500.0,0.00011494,2]
[355535123,1741241447725,-500.0,0.00011494,2]
[355535125,1741241447735,-528.33,0.00011494,2]
[355535127,1741241447746,-593.21,0.00011494,2]
[355535130,1741241447756,-587.49,0.00011494,2]
[355535132,1741241447766,-500.0,0.00011494,2]
[355535133,1741241447776,-585.03,0.00011494,2]
[355535136,1741241447786,-500.0,0.00011494,2]
[355535138,1741241447800,-500.0,0.00011494,2]
[355535140,1741241447810,-500.0,0.00011494,2]
[355535142,1741241447820,-500.0,0.00011494,2]
[355535144,1741241447831,-642.18,0.00011494,2]
[355535146,1741241447841,-500.0,0.00011494,2]
[355535148,1741241447851,-792.64,0.00011494,2]
[355535150,1741241447861,-500.0,0.00011494,2]
[355535152,1741241447873,-609.31,0.00011494,2]
[355535154,1741241447884,-500.0,0.00011494,2]
[355535156,1741241447893,-515.58,0.00011494,2]
[355535158,1741241447903,-553.46,0.00011494,2]
[355535160,1741241447913,-500.0,0.00011494,2]
[355535162,1741241447923,-500.0,0.00011494,2]
[355535164,1741241447932,-500.0,0.00011494,2]
[355535166,1741241447942,-500.0,0.00011494,2]
[355535168,1741241447952,-500.0,0.00011494,2]
[355535169,1741241447962,-502.5,0.00011494,2]
[355535171,1741241447972,-500.0,0.00011494,2]
[355535173,1741241447982,-500.0,0.00011494,2]
[355535174,1741241447992,-733.44,0.00011494,2]
[355535175,1741241448002,-500.0,0.00011494,2]
[355535176,1741241448012,-500.0,0.00011494,2]
[355535177,1741241448022,-500.0,0.00011494,2]
[355535178,1741241448032,-500.0,0.00011494,2]
[355535179,1741241448042,-500.0,0.00011494,2]
[355535180,1741241448052,-631.85,0.00011494,2]
[355535181,1741241448062,-500.0,0.00011494,2]
[355535182,1741241448072,-500.0,0.00011494,2]
[355535183,1741241448083,-500.0,0.00011494,2]
[355535184,1741241448093,-500.0,0.00011494,2]
[355535185,1741241448103,-500.0,0.00011494,2]
[355535186,1741241448113,-500.0,0.00011494,2]
[355535187,1741241448123,-500.0,0.00011494,2]
[355535188,1741241448133,-500.0,0.00011494,2]
[355535189,1741241448143,-500.0,0.00011494,2]
[355535190,1741241448153,-500.0,0.00011494,2]
[355535191,1741241448163,-500.0,0.00011494,2]
[355535193,1741241448173,-500.0,0.00011494,2]
[355535194,1741241448183,-500.0,0.00011494,2]
[355535196,1741241448194,-500.0,0.00011494,2]
[355535198,1741241448204,-500.0,0.00011494,2]
[355535201,1741241448214,-500.0,0.00011494,2]
[355535203,1741241448228,-500.0,0.00011494,2]
[355535205,1741241448238,-500.0,0.00011494,2]
[355535207,1741241448248,-500.0,0.00011494,2]
[355535209,1741241448259,-500.0,0.00011494,2]
[355535211,1741241448269,-639.11,0.00011494,2]
[355535213,1741241448279,-877.46,0.00011494,2]
[355535215,1741241448289,-500.0,0.00011494,2]
[355535217,1741241448299,-500.0,0.00011494,2]
[355535219,1741241448310,-500.0,0.00011494,2]
[355535221,1741241448320,-500.0,0.00011494,2]
[355535223,1741241448331,-500.0,0.00011494,2]
[355535225,1741241448342,-612.18,0.00011494,2]
[355535227,1741241448352,-746.31,0.00011494,2]
[355535229,1741241448363,-528.66,0.00011494,2]
[355535231,1741241448373,-500.0,0.00011494,2]
[355535233,1741241448383,-972.67,0.00011494,2]
[355535236,1741241448394,-871.06,0.00011494,2]
[355535238,1741241448404,-500.0,0.00011494,2]
[355535240,1741241448414,-500.0,0.00011494,2]
[355535242,1741241448424,-500.0,0.00011494,2]
[355535244,1741241448434,-500.0,0.00011494,2]
[355535246,1741241448445,-500.0,0.00011495,2]
[355535248,1741241448455,-500.0,0.00011495,2]
[355535250,1741241448465,-500.0,0.00011495,2]
[355535252,1741241448475,-556.45,0.00011495,2]
[355535254,1741241448485,-500.0,0.00011495,2]
[355535256,1741241448496,-500.0,0.00011495,2]
[355535258,1741241448506,-1031.72,0.00011495,2]
[355535260,1741241448516,-500.0,0.00011495,2]
[355535262,1741241448526,-500.0,0.00011495,2]
[355535264,1741241448535,-537.10247407,0.00011495,2]
[355535266,1741241448545,-500.0,0.00011495,2]
[355535268,1741241448555,-500.0,0.00011495,2]
[355535270,1741241448565,-500.0,0.00011495,2]
[355535272,1741241448575,-509.7466999,0.00011495,2]
[355535274,1741241448585,-500.0,0.00011495,2]
[355535276,1741241448595,-500.0,0.00011495,2]
[355535278,1741241448605,-510.87075773,0.00011495,2]
[355535280,1741241448615,-500.0,0.00011495,2]
[355535282,1741241448624,-500.0,0.00011495,2]
[355535284,1741241448634,-500.0,0.00011495,2]
[355535286,1741241448644,-500.0,0.00011495,2]
[355535288,1741241448653,-500.0,0.00011495,2]
[355535290,1741241448663,-500.0,0.00011495,2]
[355535292,1741241448673,-500.0,0.00011495,2]
[355535294,1741241448683,-542.72292765,0.00011495,2]
[355535296,1741241448693,-500.0,0.00011495,2]
[355535298,1741241448702,-500.0,0.00011495,2]
[355535300,1741241448712,-500.0,0.00011495,2]
[355535303,1741241448722,-500.0,0.00011495,2]
[355535304,1741241448732,-508.83895443,0.00011495,2]
[355535306,1741241448742,-500.0,0.00011495,2]
[355535308,1741241448752,-500.0,0.00011495,2]
[355535310,1741241448763,-500.0,0.00011495,2]
[355535312,1741241448772,-500.0,0.00011495,2]
[355535314,1741241448782,-500.0,0.00011495,2]
[355535317,1741241448796,-500.0,0.00011495,2]
[355535319,1741241448807,-500.0,0.00011495,2]
[355535321,1741241448816,-500.0,0.00011495,2]
[355535323,1741241448828,-500.0,0.00011495,2]
[355535325,1741241448839,-500.0,0.00011495,2]
[355535327,1741241448851,-500.0,0.00011495,2]
[355535329,1741241448861,-500.0,0.00011495,2]
[355535331,1741241448871,-500.0,0.00011495,2]
[355535333,1741241448882,-500.0,0.00011495,2]
[355535335,1741241448892,-500.0,0.00011495,2]
[355535337,1741241448900,-500.0,0.00011495,2]
[355535339,1741241448910,-500.0,0.00011495,2]
[355535341,1741241448920,-500.0,0.00011495,2]
[355535343,1741241448929,-500.0,0.00011495,2]
[355535345,1741241448937,-500.0,0.00011495,2]
[355535347,1741241448945,-500.0,0.00011495,2]
[355535350,1741241448954,-500.0,0.00011495,2]
[355535351,1741241448961,-500.0,0.00011495,2]
[355535353,1741241448969,-500.0,0.00011495,2]
[355535355,1741241448976,-500.0,0.00011495,2]
[355535357,1741241448984,-404.49687449,0.00011495,2]
[355535359,1741241448995,-500.0,0.00011495,2]
[355535361,1741241449005,-500.0,0.00011495,2]
[355535363,1741241449015,-498.6232038,0.00011495,2]
[355535365,1741241449024,-220.33025669,0.00011495,2]
[355535390,1741241449250,-500.0,0.00011495,2]
[355535392,1741241449260,-500.0,0.00011495,2]
[355535393,1741241449276,-500.0,0.00011495,2]
[355535396,1741241449285,-500.0,0.00011495,2]
[355535398,1741241449295,-500.0,0.00011495,2]
[355535400,1741241449304,-533.30538715,0.00011495,2]
[355535401,1741241449314,-500.0,0.00011495,2]
[355535403,1741241449323,-500.0,0.00011495,2]
[355535406,1741241449333,-500.0,0.00011495,2]
[355535407,1741241449343,-500.0,0.00011495,2]
[355535410,1741241449352,-500.0,0.00011495,2]
[355535412,1741241449362,-500.0,0.00011495,2]
[355535413,1741241449371,-500.0,0.00011495,2]
[355535416,1741241449382,-500.0,0.00011495,2]
[355535418,1741241449391,-500.0,0.00011495,2]
[355535420,1741241449401,-246.47491332,0.00011495,2]
[355535422,1741241449412,-500.0,0.00011495,2]
[355535424,1741241449421,-500.0,0.00011495,2]
[355535426,1741241449431,-500.0,0.00011495,2]
[355535428,1741241449440,-500.0,0.00011495,2]
[355535430,1741241449449,-500.0,0.00011495,2]
[355535432,1741241449459,-518.47271574,0.00011495,2]
[355535434,1741241449469,-500.0,0.00011495,2]
[355535436,1741241449479,-500.0,0.00011495,2]
[355535438,1741241449488,-500.0,0.00011495,2]
[355535439,1741241449497,-500.0,0.00011495,2]
[355535441,1741241449507,-629.14135693,0.00011495,2]
[355535444,1741241449516,-500.0,0.00011495,2]
[355535446,1741241449528,-500.0,0.00011495,2]
[355535448,1741241449538,-500.0,0.00011495,2]
[355535450,1741241449548,-500.0,0.00011495,2]
[355535452,1741241449557,-500.0,0.00011495,2]
[355535454,1741241449566,-500.0,0.00011495,2]
[355535456,1741241449575,-500.0,0.00011495,2]
[355535457,1741241449584,-500.0,0.00011495,2]
[355535460,1741241449595,-500.0,0.00011495,2]
[355535462,1741241449605,-500.0,0.00011495,2]
[355535464,1741241449615,-529.14325107,0.00011495,2]
[355535466,1741241449624,-500.0,0.00011495,2]
[355535468,1741241449634,-500.0,0.00011495,2]
[355535470,1741241449643,-500.0,0.00011495,2]
[355535472,1741241449652,-500.0,0.00011495,2]
[355535474,1741241449662,-500.0,0.00011495,2]
[355535476,1741241449671,-500.0,0.00011495,2]
[355535478,1741241449681,-512.83583511,0.00011496,2]
[355535480,1741241449690,-508.64235919,0.00011496,2]
[355535482,1741241449699,-433.76572882,0.00011496,2]
[355535484,1741241449709,-505.82457437,0.00011496,2]
[355535486,1741241449718,-502.78740085,0.00011496,2]
[355535488,1741241449727,-504.56862812,0.00011496,2]
[355535490,1741241449737,-502.93531676,0.00011496,2]
[355535491,1741241449746,-505.11317336,0.00011496,2]
[355535493,1741241449756,-503.72863858,0.00011496,2]
[355535496,1741241449765,-500.0,0.00011496,2]
[355535497,1741241449775,-500.0,0.00011496,2]
[355535499,1741241449784,-500.0,0.00011496,2]
[355535501,1741241449796,-500.0,0.00011496,2]
[355535503,1741241449805,-632.61387959,0.00011496,2]
[355535505,1741241449815,-500.0,0.00011496,2]
[355535507,1741241449824,-500.0,0.00011496,2]
[355535509,1741241449834,-500.0,0.00011496,2]
[355535511,1741241449844,-500.0,0.00011496,2]
[355535513,1741241449853,-500.0,0.00011496,2]
[355535515,1741241449863,-610.05,0.00011496,2]
[355535517,1741241449874,-500.0,0.00011496,2]
[355535519,1741241449884,-500.0,0.00011496,2]
[355535521,1741241449893,-500.0,0.00011496,2]
[355535523,1741241449903,-500.0,0.00011496,2]
[355535525,1741241449912,-500.0,0.00011496,2]
[355535527,1741241449922,-500.0,0.00011496,2]
[355535529,1741241449931,-500.0,0.00011496,2]
[355535531,1741241449941,-500.0,0.00011496,2]
[355535533,1741241449950,-500.0,0.00011496,2]
[355535535,1741241449960,-721.87,0.00011496,2]
[355535537,1741241449969,-500.0,0.00011496,2]
[355535539,1741241449979,-500.0,0.00011496,2]
[355535541,1741241449988,-500.0,0.00011496,2]
[355535543,1741241449998,-500.0,0.00011496,2]
[355535545,1741241450007,-500.0,0.00011496,2]
[355535547,1741241450017,-500.0,0.00011496,2]
[355535549,1741241450027,-500.0,0.00011496,2]
[355535551,1741241450036,-500.0,0.00011496,2]
[355535553,1741241450046,-719.35,0.00011496,2]
[355535555,1741241450055,-500.0,0.00011496,2]
[355535557,1741241450065,-739.76,0.00011496,2]
[355535559,1741241450075,-500.0,0.00011496,2]
[355535561,1741241450085,-500.03,0.00011496,2]
[355535563,1741241450095,-500.0,0.00011496,2]
[355535565,1741241450105,-500.0,0.00011496,2]
[355535567,1741241450115,-793.3,0.00011496,2]
[355535569,1741241450125,-500.0,0.00011496,2]
[355535571,1741241450134,-500.0,0.00011496,2]
[355535573,1741241450143,-653.14,0.00011496,2]
[355535575,1741241450153,-500.0,0.00011496,2]
[355535577,1741241450163,-500.0,0.00011496,2]
[355535579,1741241450173,-500.0,0.00011496,2]
[355535581,1741241450182,-150.928,0.00011498,2]
[355535583,1741241450193,-1277.0,0.00011498,2]
[355535585,1741241450202,-2031.0,0.00011498,2]
[355535587,1741241450211,-640.0,0.00011498,2]
[355535589,1741241450220,-1459.0,0.00011498,2]
[355535591,1741241450230,-571.0,0.00011498,2]
[355535593,1741241450240,-150.0,0.00011498,2]
[355535595,1741241450250,-786.0,0.00011498,2]
[355535597,1741241450259,-1442.22,0.00011498,2]
[355535599,1741241450269,-1297.84,0.00011498,2]
[355535601,1741241450278,-1809.47,0.00011498,2]
[355535603,1741241450287,-11759.67,0.00011498,2]
[355535605,1741241450297,-1162.82,0.00011498,2]
[355535607,1741241450307,-2010.69,0.00011498,2]
[355535609,1741241450317,-13796.56,0.00011498,2]
[355535611,1741241450327,-500.0,0.00011498,2]
[355535613,1741241450337,-1853.57,0.00011498,2]
[355535615,1741241450346,-500.0,0.00011498,2]
[355535617,1741241450356,-924.38,0.00011498,2]
[355535619,1741241450365,-2894.99,0.00011498,2]
[355535621,1741241450374,-1000.0,0.00011498,2]
[355535623,1741241450384,-2399.13,0.00011498,2]
[355535626,1741241450394,-1696.79,0.00011498,2]
[355535628,1741241450403,-1208.28,0.00011498,2]
[355535630,1741241450413,-869.34,0.00011498,2]
[355535632,1741241450423,-2387.72,0.00011499,2]
[355535634,1741241450433,-500.0,0.00011499,2]
[355535636,1741241450443,-1651.71,0.00011499,2]
[355535638,1741241450452,-500.0,0.00011499,2]
[355535640,1741241450461,-5056.14,0.00011499,2]
[355535642,1741241450471,-861.27,0.00011499,2]
[355535643,1741241450480,-500.0,0.00011499,2]
[355535644,1741241450488,-1758.59,0.00011499,2]
[355535645,1741241450497,-567.29677989,0.00011499,2]
[355535646,1741241450507,-2163.0,0.000115,2]
[355535647,1741241450515,-263670.06996318,0.000115,2]
[355535689,1741241450909,-6983.04877288,0.000114,2]
[355535691,1741241450919,-2308.73988718,0.000115,2]
[355535695,1741241450946,-11617.13487905,0.000115,2]
[355535697,1741241450959,-5570.45453968,0.000115,2]
[355535709,1741241451060,-137262.58906408,0.000115,2]
[355535711,1741241451071,-991118.59153125,0.000115,2]
[355535715,1741241451100,-452.839995,0.000115,2]
[355536020,1741241481278,9743.64950892,8.661e-05,7]
[355536021,1741241608969,585.19,8.714e-05,2]
[355536026,1741242112764,1364.20265565,0.0001,5]
[355536027,1741242118490,198.14,0.00010198,2]
[355536028,1741242120765,405.36,0.00010198,2]
[355536029,1741242125947,1694.0,0.00014,25]
[355536030,1741242191277,200.0,0.00010091,2]
[355536031,1741242200441,2000.0,0.00010091,2]
[355536033,1741242509389,789.72828685,0.0001,2]
[355536035,1741242514480,-1000.0,0.00010266,2]
[355536037,1741242524531,434.14,0.00010081,2]
[355536038,1741242539462,150.0,0.00010081,7]
[355536063,1741242632105,-1000.0,0.00010329,2]
[355536064,1741242632115,-150.83,0.00010463,2]
[355536065,1741242632125,-300.0,0.00010502,2]
[355536066,1741242632134,-2933.41544986,0.00010503,2]
[355536067,1741242632146,-1105.5310864,0.00010503,2]
[355536068,1741242632160,-5459.41346374,0.00010503,2]
[355536069,1741242632169,-1764.97243017,0.00010535,2]
[355536070,1741242632180,-2763.19870811,0.00010535,2]
[355536071,1741242632447,-1142.00319711,0.00010535,2]
[355536072,1741242632480,-172.32,0.00010535,2]
[355536073,1741242632492,-150.83,0.00010539,2]
[355536074,1741242632500,-150.83,0.00010616,2]
[355536075,1741242632509,-337.42,0.00010622,3]
[355536076,1741242632518,-136.75042232,0.00010641,2]
[355536077,1741242632531,-13.24957768,0.00010641,2]
[355536078,1741242632540,-986.75042232,0.00010642,2]
[355536080,1741242632552,-13.24957768,0.00010642,2]
[355536082,1741242632561,-1076.49,0.00010642,2]
[355536084,1741242632571,-299.99,0.00010642,2]